fUST/lending_fUST_20240721
["ID","MTS","AMOUNT","RATE_DAILY","PERIOD"]
[332731922,1721491842789,-537.23,0.00014189,2]
[332731923,1721491842799,-500.0,0.00014189,2]
[332731924,1721491842809,-1643.72,0.00014189,2]
[332731925,1721491842819,-500.0,0.00014189,2]
[332731926,1721491842829,-500.0,0.00014189,2]
[332731927,1721491842838,-500.19,0.00014189,2]
[332731928,1721491842849,-1657.95,0.00014189,2]
[332731929,1721491842859,-500.0,0.00014189,2]
[332731930,1721491842869,-500.0,0.00014189,2]
[332731931,1721491842878,-1215.39,0.00014189,2]
[332731932,1721491842888,-1601.33,0.00014189,2]
[332731933,1721491842898,-814.1,0.00014189,2]
[332731934,1721491842908,-612.34,0.00014189,2]
[332731935,1721491842918,-678.82,0.00014189,2]
[332731936,1721491842928,-500.0,0.00014189,2]
[332731937,1721491842937,-500.0,0.00014189,2]
[332731938,1721491842947,-565.95,0.00014189,2]
[332731940,1721491842959,-1119.4,0.00014189,2]
[332731942,1721491842969,-500.0,0.00014189,2]
[332731944,1721491842978,-1506.96,0.00014189,2]
[332731946,1721491842988,-500.0,0.00014189,2]
[332731948,1721491842998,-291.53186452,0.00014189,2]
[332731950,1721491843009,-500.0,0.00014189,2]
[332731953,1721491843018,-748.75,0.00014189,2]
[332731955,1721491843028,-500.0,0.00014189,2]
[332731957,1721491843038,-500.0,0.00014189,2]
[332731959,1721491843048,-1164.71,0.00014189,2]
[332731961,1721491843057,-500.0,0.00014189,2]
[332731963,1721491843067,-519.94,0.00014189,2]
[332731964,1721491843076,-800.18,0.00014189,2]
[332731965,1721491843085,-500.0,0.00014189,2]
[332731966,1721491843095,-500.0,0.00014189,2]
[332731967,1721491843105,-3039.08,0.00014189,2]
[332731968,1721491843114,-2498.78,0.00014212,2]
[332731969,1721491843123,-543.78,0.00014212,2]
[332731970,1721491843133,-500.0,0.00014212,2]
[332731971,1721491843141,-3805.06,0.00014212,2]
[332731972,1721491843151,-10010.45,0.00014212,2]
[332731973,1721491843160,-500.0,0.00014246,2]
[332731974,1721491843169,-500.0,0.00014246,2]
[332731975,1721491843179,-782.98,0.00014246,2]
[332731976,1721491843189,-655.65,0.00014246,2]
[332731977,1721491843201,-714.59,0.00014246,2]
[332731978,1721491843211,-848.06,0.00014246,2]
[332731979,1721491843220,-531.66485666,0.00014246,2]
[332731980,1721491843229,-556.89,0.00014246,2]
[332731981,1721491843239,-500.0,0.00014246,2]
[332731982,1721491843248,-500.0,0.00014246,2]
[332731983,1721491843258,-563.41,0.00014246,2]
[332731984,1721491843269,-2126.25,0.00014246,2]
[332731985,1721491843280,-500.0,0.00014246,2]
[332731986,1721491843290,-608.3971694,0.00014246,2]
[332731987,1721491843301,-500.0,0.00014246,2]
[332731988,1721491843315,-1011.96,0.00014246,2]
[332731989,1721491843325,-521.62,0.00014246,2]
[332731990,1721491843334,-669.01,0.00014246,2]
[332731991,1721491843345,-500.0,0.00014246,2]
[332731992,1721491843355,-614.57,0.00014246,2]
[332731993,1721491843365,-515.02,0.00014246,2]
[332731995,1721491843375,-500.0,0.00014246,2]
[332731997,1721491843385,-500.0,0.00014246,2]
[332731999,1721491843395,-515.92,0.00014246,2]
[332732001,1721491843405,-1113.79,0.00014246,2]
[332732002,1721491843415,-500.0,0.00014246,2]
[332732003,1721491843424,-500.0,0.00014246,2]
[332732004,1721491843434,-500.0,0.00014246,2]
[332732005,1721491843444,-500.0,0.00014246,2]
[332732006,1721491843454,-500.0,0.00014246,2]
[332732007,1721491843464,-500.0,0.00014246,2]
[332732008,1721491843474,-612.49765031,0.00014246,2]
[332732009,1721491843484,-988.14,0.00014246,2]
[332732010,1721491843493,-500.0,0.00014246,2]
[332732011,1721491843503,-651.1,0.00014246,2]
[332732012,1721491843512,-1840.78,0.00014246,2]
[332732013,1721491843522,-520.43,0.00014246,2]
[332732014,1721491843532,-500.0,0.00014246,2]
[332732015,1721491843541,-500.0,0.00014246,2]
[332732016,1721491843551,-500.0,0.00014246,2]
[332732017,1721491843560,-2015.59,0.00014246,2]
[332732018,1721491843569,-170.36782242,0.00014246,2]
[332732019,1721491843579,-624.38,0.00014246,2]
[332732020,1721491843588,-2612.05,0.00014246,2]
[332732021,1721491843599,-1396.77,0.00014246,2]
[332732022,1721491843609,-2719.15,0.00014246,2]
[332732023,1721491843618,-500.0,0.00014246,2]
[332732024,1721491843631,-507.74759922,0.00014246,2]
[332732025,1721491843641,-500.0,0.00014246,2]
[332732026,1721491843650,-1856.83,0.00014246,2]
[332732027,1721491843660,-2255.51,0.00014246,2]
[332732028,1721491843669,-500.0,0.00014246,2]
[332732029,1721491843680,-1058.46,0.00014246,2]
[332732030,1721491843691,-800.8,0.00014246,2]
[332732031,1721491843700,-8267.06,0.00014246,2]
[332732032,1721491843710,-668.99,0.00014246,2]
[332732033,1721491843719,-535.44,0.00014246,2]
[332732034,1721491843728,-1628.44,0.00014246,2]
[332732035,1721491843738,-822.27,0.00014246,2]
[332732036,1721491843747,-2530.62,0.00014246,2]
[332732037,1721491843757,-591.5,0.00014246,2]
[332732038,1721491843767,-500.0,0.00014246,2]
[332732039,1721491843776,-500.0,0.00014246,2]
[332732040,1721491843786,-2698.83,0.00014246,2]
[332732041,1721491843795,-566.71,0.00014246,2]
[332732042,1721491843805,-2276.8356244,0.00014246,2]
[332732140,1721491871047,887.20196723,9.999e-05,2]
[332732141,1721491885653,455.27,0.00010959,2]
[332732143,1721491899563,162.85283202,9.999e-05,2]
[332732144,1721491906732,726.55100361,9.999e-05,2]
[332732145,1721491914180,341.19311042,9.999e-05,2]
[332732146,1721491920456,994.11273453,9.999e-05,2]
[332732147,1721491943940,309.11901082,9.999e-05,2]
[332732149,1721491980506,162.85283202,9.999e-05,2]
[332732151,1721491987350,718.48561811,0.0001202,2]
[332732155,1721492003104,564.66516524,9.999e-05,2]
[332732156,1721492009728,322.80564612,9.999e-05,2]
[332732157,1721492046364,267.0680555,9.999e-05,2]
[332732158,1721492057027,154.82138466,9.999e-05,2]
[332732159,1721492067070,209.59381941,9.999e-05,2]
[332732160,1721492078503,162.80758887,9.999e-05,2]
[332732161,1721492220646,-25277.09438606,0.00013972,5]
[332732162,1721492234954,-7753.49778659,0.00014463,5]
[332732163,1721492248564,-150.112233,0.000142,4]
[332732164,1721492252209,3876.74889329,0.0001452,5]
[332732165,1721492253811,12638.54719303,0.00013972,5]
[332732166,1721492257935,526.19426647,9.999e-05,2]
[332732167,1721492312519,1938.37444664,0.0001452,5]
[332732168,1721492327494,273.37336231,9.9e-05,2]
[332732169,1721492335454,273.37336231,9.9e-05,2]
[332732170,1721492343672,273.37336231,9.9e-05,2]
[332732171,1721492347961,269.02442393,0.0001212,7]
[332732172,1721492350711,154.77557542,0.0001212,4]
[332732173,1721492351748,273.37336231,9.9e-05,2]
[332732174,1721492361563,273.37336231,9.9e-05,2]
[332732175,1721492369506,273.37336231,9.9e-05,2]
[332732176,1721492372727,969.18722333,0.00014463,5]
[332732177,1721492377696,273.37336231,9.9e-05,2]
[332732178,1721492386321,273.37336231,9.9e-05,2]
[332732179,1721492386732,154.77557542,0.00012,4]
[332732180,1721492387909,269.02442393,0.00012,7]
[332732181,1721492395266,273.37336231,9.9e-05,2]
[332732182,1721492403251,273.37336231,9.9e-05,2]
[332732183,1721492411801,273.37336231,9.9e-05,2]
[332732184,1721492416850,-150.112233,0.000151,4]
[332732185,1721492416880,-150.112233,0.000153,4]
[332732186,1721492416915,-500.0,0.00015438,7]
[332732187,1721492416939,-299.98,0.00015438,7]
[332732188,1721492416963,-162.18,0.00015438,7]
[332732189,1721492416987,-539.77,0.00015438,7]
[332732190,1721492417016,-150.112233,0.000155,5]
[332732191,1721492417042,-150.112233,0.000156,4]
[332732192,1721492417066,-150.112233,0.000156,4]
[332732193,1721492417099,-150.112233,0.000157,4]
[332732194,1721492417127,-150.112233,0.000158,5]
[332732195,1721492417150,-150.112233,0.000158,4]
[332732196,1721492417184,-150.112233,0.000159,5]
[332732197,1721492417210,-150.112233,0.000159,4]
[332732198,1721492417237,-150.112233,0.00016,5]
[332732199,1721492417263,-150.112233,0.00016,5]
[332732200,1721492417289,-150.112233,0.00016,4]
[332732201,1721492417315,-150.112233,0.00016,5]
[332732202,1721492419856,273.37336231,9.9e-05,2]
[332732213,1721492428776,273.37336231,9.9e-05,2]
[332732214,1721492432755,484.59361166,0.00014246,5]
[332732215,1721492438467,273.37336231,9.9e-05,2]
[332732216,1721492447011,273.37336231,9.9e-05,2]
[332732225,1721492453664,190.5635437,0.00012,4]
[332732226,1721492455605,273.37336231,9.9e-05,2]
[332732227,1721492461918,386.8260057,0.00012,7]
[332732228,1721492463911,273.37336231,9.9e-05,2]
[332732235,1721492472185,273.37336231,9.9e-05,2]
[332732236,1721492481787,273.37336231,9.9e-05,2]
[332732237,1721492490422,273.37336231,9.9e-05,2]
[332732238,1721492491605,242.29680583,0.00014246,5]
[332732239,1721492499875,273.37336231,9.9e-05,2]
[332732240,1721492508539,273.37336231,9.9e-05,2]
[332732241,1721492517662,273.37336231,9.9e-05,2]
[332732242,1721492525698,150.112233,0.00014,4]
[332732243,1721492526284,273.37336231,9.9e-05,2]
[332732244,1721492535107,273.37336231,9.9e-05,2]
[332732245,1721492543105,273.37336231,9.9e-05,2]
[332732246,1721492553049,273.37336231,9.9e-05,2]
[332732247,1721492553088,242.29680582,0.00014246,5]
[332732248,1721492561199,273.37336231,9.9e-05,2]
[332732250,1721492570250,273.37336231,9.9e-05,2]
[332732251,1721492578914,273.37336231,9.9e-05,2]
[332732252,1721492587892,273.37336231,9.9e-05,2]
[332732253,1721492595886,273.37336231,9.9e-05,2]
[332732254,1721492604381,273.37336231,9.9e-05,2]
[332732255,1721492613058,273.37336231,9.9e-05,2]
[332732256,1721492622037,273.37336231,9.9e-05,2]
[332732257,1721492626350,250.0,0.00011487,2]
[332732258,1721492626585,250.0,0.00011518,2]
[332732259,1721492626823,250.0,0.0001155,2]
[332732260,1721492627070,250.0,0.00011581,2]
[332732261,1721492627290,250.0,0.00011613,2]
[332732262,1721492627522,250.0,0.00011644,2]
[332732263,1721492627938,250.0,0.00011676,2]
[332732264,1721492628014,250.0,0.00011708,2]
[332732265,1721492628379,250.0,0.00011739,2]
[332732266,1721492628866,250.0,0.00011771,2]
[332732267,1721492629106,250.0,0.00011802,2]
[332732268,1721492629406,250.0,0.00011834,2]
[332732269,1721492629658,250.0,0.00011865,2]
[332732270,1721492629898,250.0,0.00011897,2]
[332732271,1721492630150,250.0,0.00011928,2]
[332732272,1721492630385,250.0,0.0001196,2]
[332732273,1721492630609,21.45055983,0.00011991,2]
[332732274,1721492634466,273.37336231,9.9e-05,2]
[332732275,1721492643324,273.37336231,9.9e-05,2]
[332732276,1721492651593,273.37336231,9.9e-05,2]
[332732278,1721492720632,408.88418481,9.999e-05,2]
[332732281,1721492828863,279.26403185,9.999e-05,2]
[332732282,1721492872053,250.0,0.00011221,2]
[332732297,1721492942718,394.573972,0.0001132,2]
[332732301,1721492954184,-4969.1524006,0.00011412,2]
[332732302,1721492954208,-228.54944017,0.00011991,2]
[332732303,1721492954233,-250.0,0.00012023,2]
[332732304,1721492954256,-250.0,0.00012054,2]
[332732305,1721492954277,-250.0,0.00012086,2]
[332732306,1721492954297,-300.0,0.00012203,2]
[332732307,1721492954318,-300.0,0.00012203,2]
[332732308,1721492954339,-24900.0,0.00012204,2]
[332732309,1721492954359,-2601.08515923,0.000129,2]
[332732310,1721492969127,-4319.7270805,0.00011891,2]
[332732311,1721492973161,15662.89112476,0.00014246,5]
[332732319,1721493031840,7831.44556238,0.00014246,5]
[332732339,1721493032258,-1127.26429055,0.00012671,2]
[332732345,1721493032371,-6807.59459691,0.00012671,2]
[332732346,1721493032431,-507.61878483,0.00012671,2]
[332732366,1721493038266,-16457.52232771,0.00012671,2]
[332732367,1721493038276,-704.97643839,0.00013597,2]
[332732368,1721493038286,-300.0,0.00013597,2]
[332732369,1721493038295,-300.0,0.00013597,2]
[332732370,1721493038304,-6576.14727308,0.00013598,2]
[332732371,1721493038314,-1685.45772675,0.00013598,2]
[332732372,1721493038323,-282051.194705,0.00013688,2]
[332732373,1721493038333,-836.28954198,0.00013697,2]
[332732374,1721493038343,-500.0,0.00013698,2]
[332732375,1721493038352,-500.0,0.00013698,2]
[332732376,1721493038361,-500.0,0.00013698,2]
[332732377,1721493038370,-500.0,0.00013698,2]
[332732378,1721493038380,-255.0,0.00013698,2]
[332732380,1721493038390,-500.0,0.00013698,2]
[332732382,1721493038399,-500.0,0.00013698,2]
[332732384,1721493038408,-500.0,0.00013698,2]
[332732386,1721493038418,-500.0,0.00013698,2]
[332732388,1721493038427,-749.59,0.00013698,2]
[332732390,1721493038436,-500.0,0.00013698,2]
[332732392,1721493038445,-500.0,0.00013698,2]
[332732394,1721493038454,-500.0,0.00013698,2]
[332732396,1721493038464,-500.0,0.00013698,2]
[332732398,1721493038473,-500.0,0.00013698,2]
[332732400,1721493038482,-726.31,0.00013698,2]
[332732402,1721493038491,-500.0,0.00013698,2]
[332732403,1721493038502,-608.2,0.00013698,2]
[332732404,1721493038511,-786.69,0.00013698,2]
[332732405,1721493038521,-500.0,0.00013698,2]
[332732406,1721493038530,-516.59,0.00013698,2]
[332732407,1721493038539,-500.0,0.00013698,2]
[332732408,1721493038549,-500.0,0.00013698,2]
[332732409,1721493038558,-500.0,0.00013698,2]
[332732410,1721493038570,-500.0,0.00013698,2]
[332732411,1721493038582,-500.0,0.00013698,2]
[332732412,1721493038593,-500.0,0.00013698,2]
[332732413,1721493038602,-500.0,0.00013698,2]
[332732414,1721493038614,-500.0,0.00013698,2]
[332732415,1721493038625,-500.0,0.00013698,2]
[332732416,1721493038636,-500.0,0.00013698,2]
[332732417,1721493038646,-885.46,0.00013698,2]
[332732418,1721493038658,-500.0,0.00013698,2]
[332732419,1721493038667,-500.0,0.00013698,2]
[332732420,1721493038677,-500.0,0.00013698,2]
[332732421,1721493038688,-467.3288532,0.00013698,2]
[332732422,1721493038697,-500.0,0.00013698,2]
[332732423,1721493038707,-537.75,0.00013698,2]
[332732424,1721493038716,-500.0,0.00013698,2]
[332732425,1721493038726,-500.0,0.00013698,2]
[332732426,1721493038735,-500.0,0.00013698,2]
[332732427,1721493038747,-500.0,0.00013698,2]
[332732428,1721493038757,-500.0,0.00013698,2]
[332732429,1721493038767,-519.42,0.00013698,2]
[332732430,1721493038777,-500.0,0.00013698,2]
[332732431,1721493038786,-872.09,0.00013698,2]
[332732432,1721493038796,-500.0,0.00013698,2]
[332732433,1721493038805,-500.0,0.00013698,2]
[332732434,1721493038815,-500.0,0.00013698,2]
[332732435,1721493038826,-500.0,0.00013698,2]
[332732436,1721493038837,-500.0,0.00013698,2]
[332732437,1721493038848,-500.0,0.00013698,2]
[332732438,1721493038860,-500.0,0.00013698,2]
[332732439,1721493038869,-500.0,0.00013698,2]
[332732440,1721493038879,-500.0,0.00013698,2]
[332732441,1721493038889,-621.70287847,0.00013698,2]
[332732442,1721493038900,-632.48,0.00013698,2]
[332732443,1721493038910,-500.0,0.00013698,2]
[332732444,1721493038920,-608.35,0.00013698,2]
[332732445,1721493038930,-500.0,0.00013698,2]
[332732446,1721493038940,-2096.47,0.00013698,2]
[332732447,1721493038951,-561.72,0.00013698,2]
[332732448,1721493038961,-500.0,0.00013698,2]
[332732449,1721493038971,-500.0,0.00013698,2]
[332732450,1721493038980,-500.0,0.00013698,2]
[332732451,1721493038990,-500.0,0.00013698,2]
[332732452,1721493039002,-500.0,0.00013698,2]
[332732453,1721493039012,-500.0,0.00013698,2]
[332732454,1721493039022,-500.0,0.00013698,2]
[332732455,1721493039032,-800.08,0.00013698,2]
[332732456,1721493039042,-1421.46,0.00013698,2]
[332732457,1721493039052,-500.0,0.00013698,2]
[332732458,1721493039062,-500.0,0.00013698,2]
[332732459,1721493039071,-916.5,0.00013698,2]
[332732460,1721493039081,-500.0,0.00013698,2]
[332732461,1721493039090,-500.0,0.00013698,2]
[332732462,1721493039100,-625.26,0.00013698,2]
[332732463,1721493039110,-500.0,0.00013698,2]
[332732464,1721493039119,-2486.54,0.00013698,2]
[332732465,1721493039129,-1024.59,0.00013698,2]
[332732466,1721493039139,-500.0,0.00013698,2]
[332732467,1721493039149,-399.84210935,0.00013698,2]
[332732468,1721493039159,-1018.38,0.00013698,2]
[332732469,1721493039170,-944.13,0.00013698,2]
[332732470,1721493039179,-500.0,0.00013698,2]
[332732471,1721493039189,-500.0,0.00013698,2]
[332732472,1721493039199,-577.56,0.00013698,2]
[332732473,1721493039209,-500.0,0.00013698,2]
[332732474,1721493039219,-519.82,0.00013698,2]
[332732475,1721493039229,-660.54,0.00013698,2]
[332732476,1721493039240,-500.0,0.00013698,2]
[332732477,1721493039251,-1161.41,0.00013698,2]
[332732478,1721493039262,-1906.69,0.00013698,2]
[332732479,1721493039272,-3743.88,0.00013698,2]
[332732480,1721493039282,-500.0,0.00013698,2]
[332732481,1721493039292,-718.22,0.00013698,2]
[332732482,1721493039302,-519.33,0.00013698,2]
[332732483,1721493039312,-601.14,0.00013698,2]
[332732484,1721493039322,-1041.09,0.00013698,2]
[332732485,1721493039332,-1280.95,0.00013698,2]
[332732486,1721493039342,-500.0,0.00013698,2]
[332732487,1721493039354,-500.0,0.00013698,2]
[332732488,1721493039365,-500.0,0.00013698,2]
[332732489,1721493039375,-2000.0,0.00013698,2]
[332732490,1721493039387,-500.0,0.00013698,2]
[332732491,1721493039397,-500.0,0.00013698,2]
[332732492,1721493039406,-500.0,0.00013698,2]
[332732493,1721493039417,-628.85,0.00013698,2]
[332732494,1721493039428,-324.77928867,0.00013698,2]
[332732495,1721493039438,-500.0,0.00013698,2]
[332732496,1721493039447,-500.0,0.00013698,2]
[332732497,1721493039457,-500.0,0.00013698,2]
[332732498,1721493039666,-500.0,0.00013698,2]
[332732499,1721493039675,-516.51303496,0.00013698,2]
[332732500,1721493039685,-500.0,0.00013698,2]
[332732501,1721493039695,-500.0,0.00013698,2]
[332732502,1721493039705,-500.0,0.00013698,2]
[332732503,1721493039714,-1588.93,0.00013698,2]
[332732504,1721493039725,-500.0,0.00013698,2]
[332732505,1721493039734,-760.6,0.00013698,2]
[332732506,1721493039746,-500.0,0.00013698,2]
[332732507,1721493039756,-500.0,0.00013698,2]
[332732508,1721493039766,-500.0,0.00013698,2]
[332732509,1721493039775,-500.0,0.00013698,2]
[332732510,1721493039785,-1602.69,0.00013698,2]
[332732511,1721493039794,-509.6,0.00013698,2]
[332732512,1721493039804,-500.0,0.00013698,2]
[332732513,1721493039813,-500.0,0.00013698,2]
[332732514,1721493039823,-699.79,0.00013698,2]
[332732515,1721493039834,-500.0,0.00013698,2]
[332732516,1721493039843,-500.0,0.00013698,2]
[332732517,1721493039853,-500.0,0.00013698,2]
[332732518,1721493039863,-500.0,0.00013698,2]
[332732519,1721493039872,-949.04,0.00013698,2]
[332732520,1721493039882,-500.0,0.00013698,2]
[332732521,1721493039892,-500.0,0.00013698,2]
[332732522,1721493039902,-500.0,0.00013698,2]
[332732523,1721493039912,-500.0,0.00013698,2]
[332732524,1721493039922,-2591.22,0.00013698,2]
[332732525,1721493039932,-500.0,0.00013698,2]
[332732526,1721493039942,-500.0,0.00013698,2]
[332732527,1721493039953,-1645.23,0.00013698,2]
[332732528,1721493039965,-934.91,0.00013698,2]
[332732529,1721493039976,-500.0,0.00013698,2]
[332732530,1721493039987,-500.0,0.00013698,2]
[332732531,1721493039998,-500.0,0.00013698,2]
[332732533,1721493040007,-989.81,0.00013698,2]
[332732535,1721493040017,-214.02389519,0.00013698,2]
[332732537,1721493040026,-500.0,0.00013698,2]
[332732539,1721493040036,-178.99459703,0.00013698,2]
[332732541,1721493040045,-500.0,0.00013698,2]
[332732543,1721493040056,-2535.13,0.00013698,2]
[332732544,1721493040066,-500.0,0.00013698,2]
[332732545,1721493040075,-500.0,0.00013698,2]
[332732547,1721493040085,-500.0,0.00013698,2]
[332732548,1721493040095,-500.0,0.00013698,2]
[332732549,1721493040104,-1318.31,0.00013698,2]
[332732550,1721493040114,-500.0,0.00013698,2]
[332732551,1721493040123,-500.0,0.00013698,2]
[332732552,1721493040133,-500.0,0.00013698,2]
[332732553,1721493040142,-500.0,0.00013698,2]
[332732554,1721493040152,-500.0,0.00013698,2]
[332732555,1721493040163,-500.0,0.00013698,2]
[332732556,1721493040172,-500.0,0.00013698,2]
[332732557,1721493040181,-500.0,0.00013698,2]
[332732558,1721493040191,-500.0,0.00013698,2]
[332732559,1721493040201,-749.21,0.00013698,2]
[332732560,1721493040210,-1174.87,0.00013698,2]
[332732561,1721493040220,-500.0,0.00013698,2]
[332732562,1721493040230,-1852.78,0.00013698,2]
[332732563,1721493040239,-1547.95,0.00013698,2]
[332732564,1721493040250,-500.0,0.00013698,2]
[332732565,1721493040260,-500.0,0.00013698,2]
[332732566,1721493040269,-500.0,0.00013698,2]
[332732567,1721493040279,-500.0,0.00013698,2]
[332732568,1721493040288,-500.0,0.00013698,2]
[332732570,1721493040298,-1702.72,0.00013698,2]
[332732572,1721493040308,-525.74,0.00013698,2]
[332732573,1721493040317,-500.0,0.00013698,2]
[332732574,1721493040326,-602.26,0.00013698,2]
[332732575,1721493040336,-746.23,0.00013698,2]
[332732576,1721493040346,-500.0,0.00013698,2]
[332732577,1721493040355,-686.33,0.00013698,2]
[332732578,1721493040365,-995.36,0.00013698,2]
[332732579,1721493040375,-500.0,0.00013698,2]
[332732580,1721493040385,-500.0,0.00013698,2]
[332732581,1721493040395,-500.0,0.00013698,2]
[332732582,1721493040405,-2435.34,0.00013698,2]
[332732583,1721493040414,-646.89391767,0.00013698,2]
[332732584,1721493040424,-554.91,0.00013698,2]
[332732585,1721493040434,-500.0,0.00013698,2]
[332732586,1721493040443,-786.96,0.00013698,2]
[332732587,1721493040453,-841.0,0.00013698,2]
[332732588,1721493040463,-500.0,0.00013698,2]
[332732589,1721493040472,-500.0,0.00013698,2]
[332732590,1721493040482,-1292.01,0.00013698,2]
[332732591,1721493040492,-500.0,0.00013698,2]
[332732592,1721493040504,-3633.23,0.00013698,2]
[332732593,1721493040513,-500.0,0.00013698,2]
[332732594,1721493040523,-500.0,0.00013698,2]
[332732595,1721493040536,-1717.57,0.00013698,2]
[332732596,1721493040545,-30642.34,0.00013698,2]
[332732597,1721493040555,-525.66,0.00013698,2]
[332732598,1721493040564,-979.08,0.00013698,2]
[332732599,1721493040574,-591.93,0.00013698,2]
[332732600,1721493040584,-500.0,0.00013698,2]
[332732601,1721493040593,-548.34,0.00013698,2]
[332732602,1721493040603,-515.5880543,0.00013698,2]
[332732603,1721493040612,-500.0,0.00013698,2]
[332732604,1721493040622,-500.0,0.00013698,2]
[332732605,1721493040632,-503.96679384,0.00013698,2]
[332732606,1721493040642,-2416.15,0.00013698,2]
[332732607,1721493040652,-618.82,0.00013698,2]
[332732608,1721493040661,-3095.1,0.00013698,2]
[332732609,1721493040671,-1448.57,0.00013698,2]
[332732610,1721493040680,-547.13,0.00013698,2]
[332732611,1721493040689,-500.0,0.00013698,2]
[332732612,1721493040699,-656.19,0.00013698,2]
[332732613,1721493040708,-978.44,0.00013698,2]
[332732614,1721493040718,-595.13,0.00013698,2]
[332732615,1721493040727,-500.0,0.00013698,2]
[332732616,1721493040736,-500.0,0.00013698,2]
[332732617,1721493040746,-1453.34,0.00013698,2]
[332732618,1721493040756,-1136.99,0.00013698,2]
[332732619,1721493040765,-500.0,0.00013698,2]
[332732620,1721493040775,-2337.16,0.00013698,2]
[332732621,1721493040785,-3156.6,0.00013698,2]
[332732622,1721493040794,-524.2,0.00013698,2]
[332732623,1721493040803,-538.62111057,0.00013698,2]
[332732624,1721493040812,-500.0,0.00013698,2]
[332732625,1721493040822,-500.0,0.00013698,2]
[332732626,1721493040831,-603.47,0.00013698,2]
[332732627,1721493040841,-1506.3,0.00013698,2]
[332732628,1721493040850,-500.0,0.00013698,2]
[332732629,1721493040860,-651.7,0.00013698,2]
[332732630,1721493040869,-740.74,0.00013698,2]
[332732631,1721493040879,-17578.86,0.00013698,2]
[332732632,1721493040888,-500.0,0.00013698,2]
[332732633,1721493040897,-500.0,0.00013698,2]
[332732634,1721493040907,-698.88,0.00013698,2]
[332732635,1721493040916,-7647.03,0.00013698,2]
[332732636,1721493040926,-3647.22,0.00013698,2]
[332732637,1721493040936,-884.73,0.00013698,2]
[332732638,1721493040945,-500.0,0.00013698,2]
[332732639,1721493040955,-2857.88,0.00013698,2]
[332732640,1721493040964,-384.92364276,0.00013698,2]
[332732641,1721493040974,-1910.95,0.00013698,2]
[332732642,1721493040984,-500.0,0.00013698,2]
[332732643,1721493040995,-2082.77,0.00013698,2]
[332732644,1721493041007,-500.0,0.00013698,2]
[332732645,1721493041016,-500.0,0.00013698,2]
[332732646,1721493041026,-644.49,0.00013698,2]
[332732647,1721493041037,-2340.82,0.00013698,2]
[332732648,1721493041047,-500.0,0.00013698,2]
[332732649,1721493041057,-277.90945275,0.00013698,2]
[332732650,1721493041068,-348.77204299,0.00013698,2]
[332732651,1721493041078,-176.75719991,0.00013698,2]
[332732652,1721493041088,-500.0,0.00013698,2]
[332732653,1721493041098,-500.0,0.00013698,2]
[332732654,1721493041108,-301.78371486,0.00013698,2]
[332732655,1721493041117,-500.0,0.00013698,2]
[332732656,1721493041129,-338.05094105,0.00013698,2]
[332732657,1721493041142,-231.15644863,0.00013698,2]